[Event "Titled Tuesday Blitz August 17 2021"]
[White "Obregon, Andres Carlos"]
[Black "Taichman, Ori"]
[WhiteFideId "111724"]
[BlackFideId "2804069"]
[WhiteElo "2572"]
[BlackElo "2227"]
[Result "0-1"]
[Round "06"]
[TimeControl "180+1"]
[Date "2021.08.17"]
[WhiteClock "0:00:43"]
[BlackClock "0:00:15"]

1. d4 {[%clk 0:03:00]}  Nf6 {[%clk 0:02:58]} 2. Nf3 {[%clk 0:02:58]}  g6 {[%clk 0:02:59]} 3. Bg5 {[%clk 0:02:57]}  Bg7 {[%clk 0:02:59]} 4. Nbd2 {[%clk 0:02:55]}  O-O {[%clk 0:02:54]} 5. e4 {[%clk 0:02:54]}  d5 {[%clk 0:02:54]} 6. e5 {[%clk 0:02:54]}  Ne4 {[%clk 0:02:53]} 7. Bh4 {[%clk 0:02:52]}  c5 {[%clk 0:02:52]} 8. c3 {[%clk 0:02:51]}  Nc6 {[%clk 0:02:49]} 9. dxc5 {[%clk 0:02:43]}  Nxc5 {[%clk 0:02:25]} 10. Bg3 {[%clk 0:02:37]}  Ne4 {[%clk 0:02:21]} 11. Nxe4 {[%clk 0:02:35]}  dxe4 {[%clk 0:02:22]} 12. Qxd8 {[%clk 0:02:34]}  Rxd8 {[%clk 0:02:22]} 13. Ng5 {[%clk 0:02:34]}  Bf5 {[%clk 0:01:48]} 14. e6 {[%clk 0:02:21]}  f6 {[%clk 0:01:40]} 15. Nf7 {[%clk 0:02:16]}  Rd5 {[%clk 0:01:19]} 16. Bf4 {[%clk 0:01:40]}  Bxe6 {[%clk 0:01:16]} 17. Nh6+ {[%clk 0:01:40]}  Kf8 {[%clk 0:01:00]} 18. h4 {[%clk 0:01:35]}  Rh5 {[%clk 0:00:50]} 19. Be2 {[%clk 0:01:32]}  Bxh6 {[%clk 0:00:45]} 20. Bxh5 {[%clk 0:01:30]}  Bxf4 {[%clk 0:00:45]} 21. Be2 {[%clk 0:01:30]}  e3 {[%clk 0:00:41]} 22. g3 {[%clk 0:01:28]}  exf2+ {[%clk 0:00:41]} 23. Kxf2 {[%clk 0:01:28]}  Bc7 {[%clk 0:00:41]} 24. Rhd1 {[%clk 0:01:27]}  Bb6+ {[%clk 0:00:40]} 25. Kg2 {[%clk 0:01:27]}  Rd8 {[%clk 0:00:39]} 26. Bf3 {[%clk 0:01:25]}  Ke8 {[%clk 0:00:35]} 27. b3 {[%clk 0:01:24]}  h5 {[%clk 0:00:34]} 28. Be4 {[%clk 0:01:24]}  f5 {[%clk 0:00:33]} 29. Bf3 {[%clk 0:01:24]}  Bf7 {[%clk 0:00:33]} 30. Rxd8+ {[%clk 0:01:20]}  Kxd8 {[%clk 0:00:33]} 31. Re1 {[%clk 0:01:20]}  Bc7 {[%clk 0:00:31]} 32. Rd1+ {[%clk 0:01:17]}  Kc8 {[%clk 0:00:30]} 33. Rd2 {[%clk 0:01:14]}  e5 {[%clk 0:00:30]} 34. Bd5 {[%clk 0:01:13]}  Bxd5+ {[%clk 0:00:29]} 35. Rxd5 {[%clk 0:01:14]}  e4 {[%clk 0:00:29]} 36. b4 {[%clk 0:01:14]}  a6 {[%clk 0:00:29]} 37. a4 {[%clk 0:01:14]}  Ne7 {[%clk 0:00:29]} 38. Rd1 {[%clk 0:01:11]}  Be5 {[%clk 0:00:29]} 39. c4 {[%clk 0:01:07]}  Kc7 {[%clk 0:00:28]} 40. c5 {[%clk 0:01:06]}  Bc3 {[%clk 0:00:20]} 41. b5 {[%clk 0:01:05]}  axb5 {[%clk 0:00:20]} 42. axb5 {[%clk 0:01:06]}  Bb4 {[%clk 0:00:21]} 43. b6+ {[%clk 0:01:01]}  Kc6 {[%clk 0:00:18]} 44. Rd6+ {[%clk 0:01:00]}  Kxc5 {[%clk 0:00:19]} 45. Re6 {[%clk 0:01:01]}  Kb5 {[%clk 0:00:17]} 46. Kf2 {[%clk 0:00:59]}  Bc5+ {[%clk 0:00:17]} 47. Ke2 {[%clk 0:00:59]}  f4 {[%clk 0:00:17]} 48. gxf4 {[%clk 0:00:58]}  Nd5 {[%clk 0:00:17]} 49. Re5 {[%clk 0:00:52]}  Nxf4+ {[%clk 0:00:18]} 50. Kd2 {[%clk 0:00:51]}  e3+ {[%clk 0:00:17]} 51. Kc3 {[%clk 0:00:49]}  Kxb6 {[%clk 0:00:18]} 52. Kc4 {[%clk 0:00:49]}  e2 {[%clk 0:00:17]} 53. Kc3 {[%clk 0:00:44]}  e1=Q+ {[%clk 0:00:15]} 54. Rxe1 {[%clk 0:00:43]}  Bb4+ {[%clk 0:00:15]} 0-1


[Site "https://www.chess.com"]

[Event "Titled Tuesday Blitz August 17 2021"]
[White "Papasimakopoulos, Alexandros"]
[Black "Thing, Bibek"]
[WhiteFideId "4244125"]
[BlackFideId "12303135"]
[WhiteElo "2352"]
[BlackElo "2000"]
[Result "0-1"]
[Round "06"]
[TimeControl "180+1"]
[Date "2021.08.17"]
[WhiteClock "0:00:49"]
[BlackClock "0:00:59"]

1. d4 {[%clk 0:03:00]}  Nf6 {[%clk 0:02:57]} 2. c4 {[%clk 0:03:01]}  g6 {[%clk 0:02:57]} 3. Nc3 {[%clk 0:03:01]}  d5 {[%clk 0:02:56]} 4. Nf3 {[%clk 0:03:01]}  Bg7 {[%clk 0:02:51]} 5. Qb3 {[%clk 0:03:00]}  dxc4 {[%clk 0:02:50]} 6. Qxc4 {[%clk 0:03:01]}  O-O {[%clk 0:02:50]} 7. e4 {[%clk 0:03:01]}  a6 {[%clk 0:02:46]} 8. Be2 {[%clk 0:03:01]}  b5 {[%clk 0:02:46]} 9. Qb3 {[%clk 0:03:01]}  Bb7 {[%clk 0:02:47]} 10. e5 {[%clk 0:02:58]}  Nd5 {[%clk 0:02:45]} 11. O-O {[%clk 0:02:57]}  Nxc3 {[%clk 0:02:23]} 12. bxc3 {[%clk 0:02:47]}  e6 {[%clk 0:02:21]} 13. a4 {[%clk 0:02:47]}  Bd5 {[%clk 0:02:20]} 14. Qb1 {[%clk 0:02:35]}  c6 {[%clk 0:01:51]} 15. axb5 {[%clk 0:02:24]}  cxb5 {[%clk 0:01:50]} 16. Bxb5 {[%clk 0:02:25]}  axb5 {[%clk 0:01:49]} 17. Rxa8 {[%clk 0:02:24]}  Bxa8 {[%clk 0:01:50]} 18. Qxb5 {[%clk 0:02:25]}  Bxf3 {[%clk 0:01:44]} 19. gxf3 {[%clk 0:02:25]}  Qd5 {[%clk 0:01:40]} 20. Qd3 {[%clk 0:02:22]}  Nc6 {[%clk 0:01:38]} 21. f4 {[%clk 0:02:18]}  Na5 {[%clk 0:01:29]} 22. Ba3 {[%clk 0:01:58]}  Rc8 {[%clk 0:01:26]} 23. Rb1 {[%clk 0:01:52]}  Nc4 {[%clk 0:01:24]} 24. Be7 {[%clk 0:01:44]}  Bh6 {[%clk 0:01:22]} 25. Qg3 {[%clk 0:01:07]}  Nd2 {[%clk 0:01:19]} 26. Rc1 {[%clk 0:00:52]}  Nf3+ {[%clk 0:01:02]} 27. Kf1 {[%clk 0:00:50]}  Nxd4 {[%clk 0:01:02]} 28. Qd3 {[%clk 0:00:49]}  Qh1# {[%clk 0:00:59]} 0-1


[Site "https://www.chess.com"]

[Event "Titled Tuesday Blitz August 17 2021"]
[White "Pasquier, Thomas"]
[Black "Maksimovic, Bojan"]
[WhiteFideId "614815"]
[BlackFideId "14408120"]
[WhiteElo "2117"]
[BlackElo "2439"]
[Result "0-1"]
[Round "06"]
[TimeControl "180+1"]
[Date "2021.08.18"]
[WhiteClock "0:00:02"]
[BlackClock "0:00:51"]

1. c4 {[%clk 0:03:00]}  g6 {[%clk 0:03:00]} 2. g3 {[%clk 0:02:58]}  Bg7 {[%clk 0:03:01]} 3. Bg2 {[%clk 0:02:58]}  d6 {[%clk 0:03:02]} 4. Nc3 {[%clk 0:02:56]}  e5 {[%clk 0:03:03]} 5. e3 {[%clk 0:02:52]}  f5 {[%clk 0:03:02]} 6. Nge2 {[%clk 0:02:51]}  Nf6 {[%clk 0:03:03]} 7. Rb1 {[%clk 0:02:47]}  O-O {[%clk 0:03:03]} 8. b4 {[%clk 0:02:46]}  Nc6 {[%clk 0:03:03]} 9. d4 {[%clk 0:02:40]}  e4 {[%clk 0:03:02]} 10. b5 {[%clk 0:02:39]}  Ne7 {[%clk 0:03:01]} 11. a4 {[%clk 0:02:36]}  c5 {[%clk 0:03:00]} 12. bxc6 {[%clk 0:02:30]}  bxc6 {[%clk 0:03:00]} 13. Ba3 {[%clk 0:02:28]}  Ba6 {[%clk 0:03:00]} 14. Qb3 {[%clk 0:02:23]}  Kh8 {[%clk 0:02:51]} 15. O-O {[%clk 0:02:17]}  Qd7 {[%clk 0:02:51]} 16. Na2 {[%clk 0:02:08]}  d5 {[%clk 0:02:49]} 17. cxd5 {[%clk 0:02:00]}  Bxe2 {[%clk 0:02:50]} 18. dxc6 {[%clk 0:01:51]}  Qc7 {[%clk 0:02:28]} 19. Rfc1 {[%clk 0:01:45]}  Bd3 {[%clk 0:02:28]} 20. Qb7 {[%clk 0:01:42]}  Rfc8 {[%clk 0:02:21]} 21. Bxe7 {[%clk 0:01:32]}  Bxb1 {[%clk 0:02:20]} 22. Rxb1 {[%clk 0:01:32]}  Qxc6 {[%clk 0:02:17]} 23. Qxc6 {[%clk 0:01:29]}  Rxc6 {[%clk 0:02:18]} 24. Bf1 {[%clk 0:01:25]}  Rc7 {[%clk 0:02:11]} 25. Bd6 {[%clk 0:01:23]}  Rd7 {[%clk 0:02:11]} 26. Bc5 {[%clk 0:01:22]}  a6 {[%clk 0:02:11]} 27. Rb6 {[%clk 0:01:21]}  Nd5 {[%clk 0:02:11]} 28. Rxa6 {[%clk 0:01:20]}  Rb8 {[%clk 0:02:02]} 29. Bb5 {[%clk 0:01:19]}  Rdb7 {[%clk 0:02:02]} 30. Kg2 {[%clk 0:01:13]}  Nc7 {[%clk 0:01:52]} 31. Ra5 {[%clk 0:00:51]}  Nxb5 {[%clk 0:01:52]} 32. axb5 {[%clk 0:00:51]}  Rxb5 {[%clk 0:01:53]} 33. Rxb5 {[%clk 0:00:51]}  Rxb5 {[%clk 0:01:54]} 34. Nb4 {[%clk 0:00:50]}  Kg8 {[%clk 0:01:52]} 35. Nd5 {[%clk 0:00:48]}  Kf7 {[%clk 0:01:51]} 36. h4 {[%clk 0:00:43]}  Rb7 {[%clk 0:01:49]} 37. Nf4 {[%clk 0:00:42]}  Bh6 {[%clk 0:01:48]} 38. Nd5 {[%clk 0:00:39]}  Ke6 {[%clk 0:01:49]} 39. Nc3 {[%clk 0:00:38]}  Rb3 {[%clk 0:01:48]} 40. Ne2 {[%clk 0:00:34]}  Kd5 {[%clk 0:01:45]} 41. Be7 {[%clk 0:00:30]}  Kc4 {[%clk 0:01:39]} 42. Bg5 {[%clk 0:00:28]}  Bf8 {[%clk 0:01:33]} 43. Bf4 {[%clk 0:00:24]}  Rb2 {[%clk 0:01:31]} 44. Ng1 {[%clk 0:00:22]}  Bb4 {[%clk 0:01:29]} 45. Nh3 {[%clk 0:00:16]}  Kd3 {[%clk 0:01:21]} 46. d5 {[%clk 0:00:12]}  Ke2 {[%clk 0:01:18]} 47. Bc7 {[%clk 0:00:10]}  Rd2 {[%clk 0:01:14]} 48. Be5 {[%clk 0:00:02]}  Ke1 {[%clk 0:01:11]} 49. d6 {[%clk 0:00:01]}  Rd1 {[%clk 0:00:57]} 50. Kg1 {[%clk 0:00:01]}  Bxd6 {[%clk 0:00:52]} 51. Bxd6 {[%clk 0:00:01]}  Rxd6 {[%clk 0:00:52]} 52. Kg2 {[%clk 0:00:02]}  Rd2 {[%clk 0:00:50]} 53. Kg1 {[%clk 0:00:01]}  h6 {[%clk 0:00:50]} 54. Kg2 {[%clk 0:00:01]}  g5 {[%clk 0:00:50]} 55. hxg5 {[%clk 0:00:02]}  hxg5 {[%clk 0:00:51]} 0-1


[Site "https://www.chess.com"]

[Event "Titled Tuesday Blitz August 17 2021"]
[White "Primbetov, Kazbek"]
[Black "Shkapenko, Pavel"]
[WhiteFideId "13702297"]
[BlackFideId "4151933"]
[WhiteElo "2184"]
[BlackElo "2386"]
[Result "1-0"]
[Round "06"]
[TimeControl "180+1"]
[Date "2021.08.17"]
[WhiteClock "0:00:03"]
[BlackClock "0:00:04"]

1. d4 {[%clk 0:03:00]}  Nf6 {[%clk 0:02:59]} 2. Bf4 {[%clk 0:03:00]}  e6 {[%clk 0:02:59]} 3. e3 {[%clk 0:02:59]}  c5 {[%clk 0:03:00]} 4. c3 {[%clk 0:02:59]}  cxd4 {[%clk 0:02:56]} 5. exd4 {[%clk 0:02:51]}  b6 {[%clk 0:02:55]} 6. Nd2 {[%clk 0:02:49]}  Bb7 {[%clk 0:02:54]} 7. Ngf3 {[%clk 0:02:48]}  d6 {[%clk 0:02:54]} 8. Bb5+ {[%clk 0:02:45]}  Bc6 {[%clk 0:02:52]} 9. Bd3 {[%clk 0:02:43]}  Be7 {[%clk 0:02:52]} 10. O-O {[%clk 0:02:41]}  O-O {[%clk 0:02:51]} 11. h3 {[%clk 0:02:41]}  Nbd7 {[%clk 0:02:49]} 12. Re1 {[%clk 0:02:41]}  Re8 {[%clk 0:02:49]} 13. a4 {[%clk 0:02:40]}  a6 {[%clk 0:02:49]} 14. Qe2 {[%clk 0:02:21]}  Bf8 {[%clk 0:02:47]} 15. Bxa6 {[%clk 0:02:15]}  e5 {[%clk 0:02:46]} 16. dxe5 {[%clk 0:02:11]}  dxe5 {[%clk 0:02:46]} 17. Bg5 {[%clk 0:02:05]}  Nc5 {[%clk 0:02:38]} 18. Bb5 {[%clk 0:02:04]}  Bxb5 {[%clk 0:02:32]} 19. axb5 {[%clk 0:01:58]}  Rxa1 {[%clk 0:02:28]} 20. Rxa1 {[%clk 0:01:59]}  e4 {[%clk 0:02:28]} 21. Nd4 {[%clk 0:01:56]}  Qd6 {[%clk 0:02:13]} 22. Nc4 {[%clk 0:01:50]}  Qd8 {[%clk 0:01:58]} 23. Ra7 {[%clk 0:01:40]}  Nd3 {[%clk 0:01:51]} 24. Rb7 {[%clk 0:00:57]}  Qc8 {[%clk 0:01:43]} 25. Bxf6 {[%clk 0:00:50]}  Qxb7 {[%clk 0:01:39]} 26. Qg4 {[%clk 0:00:45]}  Qd5 {[%clk 0:01:02]} 27. Nxb6 {[%clk 0:00:30]}  h5 {[%clk 0:00:41]} 28. Nxd5 {[%clk 0:00:21]}  hxg4 {[%clk 0:00:40]} 29. Bg5 {[%clk 0:00:20]}  gxh3 {[%clk 0:00:40]} 30. b6 {[%clk 0:00:20]}  h2+ {[%clk 0:00:26]} 31. Kxh2 {[%clk 0:00:20]}  Nxf2 {[%clk 0:00:27]} 32. b7 {[%clk 0:00:17]}  Bd6+ {[%clk 0:00:25]} 33. Bf4 {[%clk 0:00:17]}  Bxf4+ {[%clk 0:00:24]} 34. Nxf4 {[%clk 0:00:17]}  Rb8 {[%clk 0:00:25]} 35. b4 {[%clk 0:00:16]}  Rxb7 {[%clk 0:00:25]} 36. b5 {[%clk 0:00:16]}  Nd3 {[%clk 0:00:24]} 37. Nd5 {[%clk 0:00:16]}  Nc5 {[%clk 0:00:20]} 38. c4 {[%clk 0:00:15]}  g6 {[%clk 0:00:18]} 39. Kg3 {[%clk 0:00:15]}  f5 {[%clk 0:00:18]} 40. Kf4 {[%clk 0:00:15]}  Kf7 {[%clk 0:00:19]} 41. b6 {[%clk 0:00:13]}  Nd3+ {[%clk 0:00:18]} 42. Ke3 {[%clk 0:00:13]}  Ke8 {[%clk 0:00:13]} 43. Nb3 {[%clk 0:00:09]}  Kd7 {[%clk 0:00:12]} 44. Kd4 {[%clk 0:00:08]}  Rb8 {[%clk 0:00:07]} 45. c5 {[%clk 0:00:08]}  Ne1 {[%clk 0:00:05]} 46. Na5 {[%clk 0:00:06]}  Nxg2 {[%clk 0:00:05]} 47. c6+ {[%clk 0:00:06]}  Kd6 {[%clk 0:00:05]} 48. c7 {[%clk 0:00:05]}  Re8 {[%clk 0:00:03]} 49. b7 {[%clk 0:00:05]}  Kd7 {[%clk 0:00:03]} 50. b8=Q {[%clk 0:00:04]}  Rxb8 {[%clk 0:00:03]} 51. cxb8=Q {[%clk 0:00:05]}  Ke6 {[%clk 0:00:04]} 52. Qe8+ {[%clk 0:00:03]}  Kd6 {[%clk 0:00:04]} 53. Qc6# {[%clk 0:00:03]} 1-0


[Site "https://www.chess.com"]

[Event "Titled Tuesday Blitz August 17 2021"]
[White "Pultinevicius, Paulius"]
[Black "Gupta, Abhijeet"]
[WhiteFideId "12809390"]
[BlackFideId "5010608"]
[WhiteElo "2479"]
[BlackElo "2549"]
[Result "0-1"]
[Round "06"]
[TimeControl "180+1"]
[Date "2021.08.17"]
[WhiteClock "0:00:02"]
[BlackClock "0:00:26"]

1. d4 {[%clk 0:02:55]}  Nf6 {[%clk 0:02:58]} 2. c4 {[%clk 0:02:56]}  c6 {[%clk 0:02:56]} 3. Nc3 {[%clk 0:02:55]}  d5 {[%clk 0:02:57]} 4. e3 {[%clk 0:02:55]}  e6 {[%clk 0:02:58]} 5. Nf3 {[%clk 0:02:55]}  Nbd7 {[%clk 0:02:58]} 6. Qc2 {[%clk 0:02:55]}  Bd6 {[%clk 0:02:58]} 7. Be2 {[%clk 0:02:50]}  O-O {[%clk 0:02:57]} 8. O-O {[%clk 0:02:49]}  dxc4 {[%clk 0:02:56]} 9. Bxc4 {[%clk 0:02:50]}  b5 {[%clk 0:02:56]} 10. Be2 {[%clk 0:02:49]}  Bb7 {[%clk 0:02:56]} 11. a3 {[%clk 0:02:49]}  a6 {[%clk 0:02:55]} 12. b4 {[%clk 0:02:46]}  e5 {[%clk 0:02:54]} 13. Rb1 {[%clk 0:02:42]}  Re8 {[%clk 0:02:52]} 14. Rd1 {[%clk 0:02:39]}  Qe7 {[%clk 0:02:46]} 15. h3 {[%clk 0:02:32]}  e4 {[%clk 0:02:41]} 16. Nd2 {[%clk 0:02:30]}  Nb6 {[%clk 0:02:39]} 17. Nb3 {[%clk 0:02:29]}  Bc8 {[%clk 0:02:35]} 18. Bb2 {[%clk 0:02:22]}  Bf5 {[%clk 0:02:33]} 19. Rdc1 {[%clk 0:02:17]}  h5 {[%clk 0:01:56]} 20. Nc5 {[%clk 0:02:09]}  h4 {[%clk 0:01:53]} 21. a4 {[%clk 0:02:08]}  Nbd5 {[%clk 0:01:48]} 22. Ba3 {[%clk 0:01:52]}  Nxc3 {[%clk 0:01:46]} 23. Qxc3 {[%clk 0:01:53]}  Nd5 {[%clk 0:01:46]} 24. Qe1 {[%clk 0:01:53]}  Bc7 {[%clk 0:01:40]} 25. Rc2 {[%clk 0:01:51]}  Qd6 {[%clk 0:01:37]} 26. Kf1 {[%clk 0:01:38]}  Qh2 {[%clk 0:01:35]} 27. Bg4 {[%clk 0:01:38]}  Bxg4 {[%clk 0:01:34]} 28. hxg4 {[%clk 0:01:39]}  Qh1+ {[%clk 0:01:34]} 29. Ke2 {[%clk 0:01:40]}  Qxg2 {[%clk 0:01:35]} 30. Qg1 {[%clk 0:01:31]}  Qf3+ {[%clk 0:01:35]} 31. Kd2 {[%clk 0:01:31]}  a5 {[%clk 0:01:26]} 32. bxa5 {[%clk 0:01:01]}  Bxa5+ {[%clk 0:01:24]} 33. Kc1 {[%clk 0:01:01]}  b4 {[%clk 0:01:22]} 34. Bb2 {[%clk 0:00:59]}  h3 {[%clk 0:01:23]} 35. Ba1 {[%clk 0:00:40]}  Bc7 {[%clk 0:01:20]} 36. Kb2 {[%clk 0:00:38]}  b3 {[%clk 0:01:15]} 37. Rd2 {[%clk 0:00:17]}  h2 {[%clk 0:01:13]} 38. Qh1 {[%clk 0:00:16]}  Qxg4 {[%clk 0:01:13]} 39. Ka3 {[%clk 0:00:08]}  Bd6 {[%clk 0:01:11]} 40. Rxb3 {[%clk 0:00:07]}  Rxa4+ {[%clk 0:00:54]} 41. Kb2 {[%clk 0:00:05]}  Bxc5 {[%clk 0:00:45]} 42. dxc5 {[%clk 0:00:05]}  Rea8 {[%clk 0:00:46]} 43. Kc2 {[%clk 0:00:02]}  Rxa1 {[%clk 0:00:38]} 44. Rb8+ {[%clk 0:00:01]}  Rxb8 {[%clk 0:00:38]} 45. Qxa1 {[%clk 0:00:01]}  Qf3 {[%clk 0:00:30]} 46. Qe5 {[%clk 0:00:02]}  h1=Q {[%clk 0:00:25]} 47. Qxb8+ {[%clk 0:00:02]}  Kh7 {[%clk 0:00:26]} 0-1


[Site "https://www.chess.com"]

[Event "Titled Tuesday Blitz August 17 2021"]
[White "Real De Azua, Ernesto"]
[Black "Mekhitarian, Krikor Sevag"]
[WhiteFideId "108154"]
[BlackFideId "2107660"]
[WhiteElo "2476"]
[BlackElo "2598"]
[Result "0-1"]
[Round "06"]
[TimeControl "180+1"]
[Date "2021.08.17"]
[WhiteClock "0:00:02"]
[BlackClock "0:00:08"]

1. Nf3 {[%clk 0:03:00]}  d5 {[%clk 0:02:54]} 2. e3 {[%clk 0:03:00]}  Nc6 {[%clk 0:02:52]} 3. d4 {[%clk 0:02:58]}  Bg4 {[%clk 0:02:51]} 4. Bb5 {[%clk 0:02:57]}  Qd6 {[%clk 0:02:25]} 5. Nbd2 {[%clk 0:02:53]}  Nf6 {[%clk 0:02:20]} 6. c4 {[%clk 0:02:51]}  dxc4 {[%clk 0:02:07]} 7. O-O {[%clk 0:02:50]}  e6 {[%clk 0:02:01]} 8. Nxc4 {[%clk 0:02:48]}  Qd5 {[%clk 0:02:00]} 9. Bxc6+ {[%clk 0:02:13]}  Qxc6 {[%clk 0:01:41]} 10. Nce5 {[%clk 0:02:13]}  Bxf3 {[%clk 0:01:30]} 11. Qxf3 {[%clk 0:02:13]}  Qxf3 {[%clk 0:01:29]} 12. Nxf3 {[%clk 0:02:14]}  c5 {[%clk 0:01:27]} 13. dxc5 {[%clk 0:02:09]}  Bxc5 {[%clk 0:01:27]} 14. Bd2 {[%clk 0:02:09]}  Ne4 {[%clk 0:01:26]} 15. Rfc1 {[%clk 0:02:08]}  Ke7 {[%clk 0:01:14]} 16. Be1 {[%clk 0:02:04]}  Rac8 {[%clk 0:01:11]} 17. Kf1 {[%clk 0:02:01]}  Rhd8 {[%clk 0:01:10]} 18. Ke2 {[%clk 0:02:01]}  f6 {[%clk 0:01:05]} 19. Rc4 {[%clk 0:01:49]}  Nd6 {[%clk 0:01:04]} 20. Rc2 {[%clk 0:01:49]}  Bb6 {[%clk 0:00:58]} 21. Rac1 {[%clk 0:01:48]}  Rxc2+ {[%clk 0:00:58]} 22. Rxc2 {[%clk 0:01:49]}  e5 {[%clk 0:00:58]} 23. Bb4 {[%clk 0:01:45]}  Ke6 {[%clk 0:00:57]} 24. Bxd6 {[%clk 0:01:45]}  Rxd6 {[%clk 0:00:57]} 25. Nd2 {[%clk 0:01:32]}  f5 {[%clk 0:00:42]} 26. Rc8 {[%clk 0:01:26]}  Rd8 {[%clk 0:00:41]} 27. Rxd8 {[%clk 0:01:22]}  Bxd8 {[%clk 0:00:42]} 28. e4 {[%clk 0:01:16]}  g6 {[%clk 0:00:37]} 29. f3 {[%clk 0:01:16]}  Bb6 {[%clk 0:00:31]} 30. Nc4 {[%clk 0:00:58]}  Bd4 {[%clk 0:00:31]} 31. a4 {[%clk 0:00:43]}  a6 {[%clk 0:00:24]} 32. b3 {[%clk 0:00:38]}  Kd7 {[%clk 0:00:20]} 33. Kd3 {[%clk 0:00:36]}  f4 {[%clk 0:00:15]} 34. Nd2 {[%clk 0:00:19]}  Kc6 {[%clk 0:00:15]} 35. Kc4 {[%clk 0:00:19]}  b5+ {[%clk 0:00:15]} 36. axb5+ {[%clk 0:00:20]}  axb5+ {[%clk 0:00:16]} 37. Kd3 {[%clk 0:00:20]}  Kc5 {[%clk 0:00:16]} 38. Kc2 {[%clk 0:00:14]}  Bg1 {[%clk 0:00:13]} 39. h3 {[%clk 0:00:14]}  Kd4 {[%clk 0:00:13]} 40. Nf1 {[%clk 0:00:14]}  Bf2 {[%clk 0:00:11]} 41. Kd2 {[%clk 0:00:13]}  Bh4 {[%clk 0:00:11]} 42. Kc2 {[%clk 0:00:13]}  Be7 {[%clk 0:00:11]} 43. Kd2 {[%clk 0:00:06]}  Bb4+ {[%clk 0:00:11]} 44. Kc2 {[%clk 0:00:07]}  Ba5 {[%clk 0:00:09]} 45. Nh2 {[%clk 0:00:04]}  h5 {[%clk 0:00:08]} 46. Nf1 {[%clk 0:00:04]}  Bb4 {[%clk 0:00:08]} 47. Kc1 {[%clk 0:00:02]}  Kd3 {[%clk 0:00:08]} 48. Kd1 {[%clk 0:00:02]}  Ba5 {[%clk 0:00:08]} 49. Kc1 {[%clk 0:00:01]}  Ke2 {[%clk 0:00:08]} 50. Nh2 {[%clk 0:00:02]}  Kf2 {[%clk 0:00:08]} 0-1


[Site "https://www.chess.com"]